bitfinex/quotes_BTCUSD_20250518
["timestamp","ask_amount","ask_price","bid_price","bid_amount"]
[1747527813200,0.41767668,103230.0,103220.0,0.0392565]
[1747527814436,0.41767668,103230.0,103220.0,0.02382227]
[1747527815723,0.40798958,103230.0,103220.0,0.02382227]
[1747527815936,0.40798958,103230.0,103220.0,0.24664653]
[1747527815937,0.41190294,103230.0,103220.0,0.24664653]
[1747527816148,0.2391492,103230.0,103220.0,0.24664662]
[1747527816363,0.43131611,103230.0,103220.0,0.2272712]
[1747527816636,0.43131611,103230.0,103220.0,0.23695915]
[1747527816843,0.43131611,103230.0,103220.0,0.23695905]
[1747527817051,0.43131611,103230.0,103220.0,0.24664671]
[1747527817255,0.43131611,103230.0,103220.0,0.24664681]
[1747527818090,0.43131611,103230.0,103220.0,0.25633447]
[1747527818323,0.43131611,103230.0,103220.0,0.24664681]
[1747527818507,0.43131611,103230.0,103220.0,0.25633447]
[1747527818722,0.44100321,103230.0,103220.0,0.23695905]
[1747527819226,0.43131695,103230.0,103220.0,0.2272712]
[1747527819385,0.43131695,103230.0,103220.0,0.246647]
[1747527820353,0.43131695,103230.0,103220.0,0.23695915]
[1747527821183,0.42162985,103230.0,103220.0,0.23695915]
[1747527821616,0.43131686,103230.0,103220.0,0.23695915]
[1747527822027,0.43131686,103230.0,103220.0,0.2272712]
[1747527822275,0.43683032,103230.0,103220.0,0.02382227]
[1747527822720,0.4271435,103230.0,103220.0,0.02382227]
[1747527823160,0.41745659,103230.0,103220.0,0.02382227]
[1747527823941,0.23497659,103230.0,103220.0,0.02382227]
[1747527824209,0.41725659,103230.0,103220.0,0.02382227]
[1747527826241,0.41725659,103230.0,103220.0,0.01223544]
[1747527826701,0.47352503,103230.0,103220.0,0.01223544]
[1747527826908,0.41725659,103230.0,103220.0,0.01223544]
[1747527831199,0.41901659,103230.0,103220.0,0.01223544]
[1747527831406,0.41905659,103230.0,103220.0,0.01223544]
[1747527833706,0.41901659,103230.0,103220.0,0.01223544]
[1747527834432,0.41736497,103230.0,103220.0,0.01223544]
[1747527839288,0.40668296,103230.0,103220.0,0.01223544]
[1747527839483,0.40668296,103230.0,103220.0,0.02192348]
[1747527839891,0.40250922,103230.0,103220.0,0.01223544]
[1747527840092,0.21862922,103230.0,103220.0,0.01223544]
[1747527840297,0.40242922,103230.0,103220.0,0.02192348]
[1747527840493,0.40242922,103230.0,103220.0,0.01223544]
[1747527840826,0.41892922,103230.0,103220.0,0.01223544]
[1747527847526,0.41884922,103230.0,103220.0,0.01223544]
[1747527847734,0.40916212,103230.0,103220.0,0.01223544]
[1747527859316,0.22544212,103230.0,103220.0,0.01223544]
[1747527859531,0.40848212,103230.0,103220.0,0.01223544]
[1747527859960,0.40852212,103230.0,103220.0,0.01223544]
[1747527860349,0.40852212,103230.0,103220.0,0.02382227]
[1747527860911,0.20894212,103230.0,103220.0,0.02382227]
[1747527861117,0.39615566,103230.0,103220.0,0.02382227]
[1747527861962,0.41185566,103230.0,103220.0,0.02382227]
[1747527862381,0.42725566,103230.0,103220.0,0.02382227]
[1747527862965,0.22881566,103230.0,103220.0,0.03351031]
[1747527863166,0.40592276,103230.0,103220.0,0.26264681]
[1747527863417,0.03874643,103230.0,103220.0,0.28202185]
[1747527863626,0.41564921,103230.0,103220.0,0.27824681]
[1747527864037,0.41564921,103230.0,103220.0,0.28793447]
[1747527864252,0.21311529,103230.0,103220.0,0.287934]
[1747527864470,0.23248921,103230.0,103220.0,0.26855877]
[1747527865924,0.23248921,103230.0,103220.0,0.25295877]
[1747527866348,0.22280267,103230.0,103220.0,0.02382227]
[1747527866553,0.21311604,103230.0,103220.0,0.23695896]
[1747527866735,0.21311604,103230.0,103220.0,0.25239319]
[1747527866947,0.21311604,103230.0,103220.0,0.04894454]
[1747527867358,0.21311604,103230.0,103220.0,0.25239338]
[1747527867556,0.21311604,103230.0,103220.0,0.26208123]
[1747527868890,0.21311604,103230.0,103220.0,0.26799338]
[1747527869669,0.21311604,103230.0,103220.0,0.25239338]
[1747527869873,0.21311548,103230.0,103220.0,0.3038688]
[1747527870076,0.01937261,103230.0,103220.0,0.29418019]
[1747527870285,0.24217481,103230.0,103220.0,0.29418019]
[1747527870486,0.04843269,103230.0,103220.0,0.29418019]
[1747527870742,0.03874578,103230.0,103220.0,0.29418019]
[1747527871116,0.04843269,103230.0,103220.0,0.29418019]
[1747527871659,0.03874578,103230.0,103220.0,0.29418019]
[1747527871899,0.03874568,103230.0,103220.0,0.29418019]
[1747527872112,0.24217528,103230.0,103220.0,0.29418019]
[1747527873127,0.23248959,103230.0,103220.0,0.24270524]
[1747527873329,0.22280296,103230.0,103220.0,0.24270543]
[1747527873565,0.22280296,103230.0,103220.0,0.26208114]
[1747527873775,0.22280296,103230.0,103220.0,0.25239338]
[1747527874186,0.22280296,103230.0,103220.0,0.0392565]
[1747527874387,0.42723623,103230.0,103220.0,0.0392565]
[1747527875594,0.42723623,103230.0,103220.0,0.02382227]
[1747527882450,0.42723623,103230.0,103220.0,0.03351031]
[1747527882638,0.41754922,103230.0,103220.0,0.03351031]
[1747527883085,0.40786212,103230.0,103220.0,0.02382227]
[1747527883488,0.40786212,103230.0,103220.0,0.2272712]
[1747527884072,0.40786212,103230.0,103220.0,0.02382227]
[1747527889266,0.22494212,103230.0,103220.0,0.02382227]
[1747527889440,0.40730212,103230.0,103220.0,0.02382227]
[1747527895486,0.40730212,103230.0,103220.0,0.01223544]
[1747527901295,0.40690212,103230.0,103220.0,0.01223544]
[1747527901503,0.20874212,103230.0,103220.0,0.20599633]
[1747527901705,0.40472221,103230.0,103220.0,0.22537213]
[1747527901923,0.23248875,103230.0,103220.0,0.23505989]
[1747527902130,0.41444875,103230.0,103220.0,0.22537213]
[1747527902547,0.22280174,103230.0,103220.0,0.26054755]
[1747527902699,0.41440884,103230.0,103220.0,0.25085979]
[1747527903101,0.41440884,103230.0,103220.0,0.26054736]
[1747527903529,0.41440884,103230.0,103220.0,0.25085979]
[1747527903754,0.41436856,103230.0,103220.0,0.27654727]
[1747527903988,0.22280155,103230.0,103220.0,0.27654727]
[1747527904204,0.23248856,103230.0,103220.0,0.27654727]
[1747527904416,0.02905933,103230.0,103220.0,0.28623465]
[1747527904634,0.22280145,103230.0,103220.0,0.28623465]
[1747527904835,0.24217519,103230.0,103220.0,0.28756833]
[1747527905039,0.24217603,103230.0,103220.0,0.28756842]
[1747527905270,0.22280296,103230.0,103220.0,0.24270543]
[1747527905484,0.22821623,103230.0,103220.0,0.0392565]
[1747527905685,0.23372922,103230.0,103220.0,0.0392565]
[1747527908319,0.23372922,103230.0,103220.0,0.02382227]
[1747527915839,0.41552922,103230.0,103220.0,0.02382227]
[1747527920851,0.39467585,103230.0,103220.0,0.24347111]
[1747527921054,0.40436239,103230.0,103220.0,0.25315877]
[1747527921254,0.40432239,103230.0,103220.0,0.25315877]
[1747527921660,0.40432239,103230.0,103220.0,0.25315887]
[1747527921879,0.40432239,103230.0,103220.0,0.25315877]
[1747527922081,0.40432239,103230.0,103220.0,0.26284662]
[1747527922455,0.21057924,103230.0,103220.0,0.288434]
[1747527923123,0.21057915,103230.0,103220.0,0.288434]
[1747527923332,0.00968626,103230.0,103220.0,0.288434]
[1747527923870,0.04198541,103240.0,103230.0,0.2390021]
[1747527924095,0.24291698,103240.0,103230.0,0.2390021]
[1747527924300,0.43664034,103240.0,103230.0,0.26413764]
[1747527924534,0.43664034,103240.0,103230.0,0.27382408]
[1747527924851,0.05167101,103240.0,103230.0,0.27382408]
[1747527925057,0.43672044,103240.0,103230.0,0.27572447]
[1747527925264,0.22362551,103240.0,103230.0,0.28541091]
[1747527925480,0.0516712,103240.0,103230.0,0.28541091]
[1747527925685,0.44636642,103240.0,103230.0,0.27572447]
[1747527926110,0.44636707,103240.0,103230.0,0.2404514]
[1747527926312,0.44636707,103240.0,103230.0,0.02082227]
[1747527926514,0.4269955,103240.0,103230.0,0.21456439]
[1747527926712,0.4269955,103240.0,103230.0,0.23393831]
[1747527927071,0.4269955,103240.0,103230.0,0.24362513]
[1747527927683,0.4269955,103240.0,103230.0,0.21456439]
[1747527927892,0.4269955,103240.0,103230.0,0.23393831]
[1747527928451,0.4269955,103240.0,103230.0,0.2242514]
[1747527928655,0.4269955,103240.0,103230.0,0.22425149]
[1747527928860,0.4269955,103240.0,103230.0,0.2339385]
[1747527929382,0.4269955,103240.0,103230.0,0.24362541]
[1747527930197,0.4269955,103240.0,103230.0,0.2339385]
[1747527930618,0.2453955,103240.0,103230.0,0.24362541]
[1747527930823,0.4269155,103240.0,103230.0,0.2339385]
[1747527931431,0.4269155,103240.0,103230.0,0.24362541]
[1747527931595,0.42691446,103240.0,103230.0,0.25942541]
[1747527931817,0.22350541,103240.0,103230.0,0.27879792]
[1747527932036,0.0323,103240.0,103230.0,0.29389792]
[1747527932241,0.04198532,103240.0,103230.0,0.29389792]
[1747527932454,0.0323,103240.0,103230.0,0.40574817]
[1747527932859,0.0516711,103240.0,103230.0,0.41518455]
[1747527933072,0.24539446,103240.0,103230.0,0.41518455]
[1747527933277,0.24539446,103240.0,103230.0,0.37668856]
[1747527933486,0.25508034,103240.0,103230.0,0.40574836]
[1747527933684,0.0323,103240.0,103230.0,0.40574836]
[1747527933895,0.04198541,103240.0,103230.0,0.40574836]
[1747527934348,0.24539428,103240.0,103230.0,0.35547538]
[1747527934537,0.26476605,103240.0,103230.0,0.37484855]
[1747527934720,0.26476605,103240.0,103230.0,0.33610165]
[1747527934923,0.26476614,103240.0,103230.0,0.3712752]
[1747527935296,0.05167092,103240.0,103230.0,0.38096164]
[1747527935894,0.25508007,103240.0,103230.0,0.38096164]
[1747527936109,0.25508007,103240.0,103230.0,0.38096174]
[1747527936772,0.25508007,103240.0,103230.0,0.39064818]
[1747527937173,0.26476605,103240.0,103230.0,0.3712752]
[1747527937377,0.26476605,103240.0,103230.0,0.36642098]
[1747527937581,0.26476689,103240.0,103230.0,0.3312479]
[1747527937909,0.24539428,103240.0,103230.0,0.35062107]
[1747527938178,0.25508007,103240.0,103230.0,0.36602107]
[1747527938380,0.27445211,103240.0,103230.0,0.35633472]
[1747527938742,0.27445211,103240.0,103230.0,0.35633481]
[1747527938949,0.2647667,103240.0,103230.0,0.3466479]
[1747527939153,0.2550811,103240.0,103230.0,0.3215607]
[1747527939355,0.2550811,103240.0,103230.0,0.3215608]
[1747527939707,0.2550811,103240.0,103230.0,0.33124762]
[1747527940917,0.2550811,103240.0,103230.0,0.11813167]
[1747527941127,0.27729531,103240.0,103230.0,0.02082227]
[1747527944183,0.27729531,103240.0,103230.0,0.03050937]
[1747527945496,0.26089531,103240.0,103230.0,0.03050937]
[1747527945754,0.26089531,103240.0,103230.0,0.02082227]
[1747527946350,0.26089531,103240.0,103230.0,0.03050937]
[1747527946556,0.27659531,103240.0,103230.0,0.02082227]
[1747527946755,0.27659531,103240.0,103230.0,0.03050937]
[1747527946965,0.27659531,103240.0,103230.0,0.02082227]
[1747527947375,0.27659531,103240.0,103230.0,0.0362565]
[1747527947579,0.27659531,103240.0,103230.0,0.0459436]
[1747527947915,0.27659531,103240.0,103230.0,0.23968572]
[1747527948127,0.26089531,103240.0,103230.0,0.23968572]
[1747527949791,0.26089531,103240.0,103230.0,0.24937273]
[1747527950394,0.26089531,103240.0,103230.0,0.23968572]
[1747527950595,0.26089531,103240.0,103230.0,0.22425149]
[1747527950941,0.26089531,103240.0,103230.0,0.03050937]
[1747527951443,0.26089531,103240.0,103230.0,0.2339385]
[1747527951991,0.26089531,103240.0,103230.0,0.22425149]
[1747527952977,0.27659531,103240.0,103230.0,0.02082227]
[1747527953787,0.26690943,103240.0,103230.0,0.02082227]
[1747527954215,0.26690943,103240.0,103230.0,0.0362565]
[1747527956875,0.26690943,103240.0,103230.0,0.0459436]
[1747527957463,0.26690943,103240.0,103230.0,0.0362565]
[1747527957673,0.26690943,103240.0,103230.0,0.0459436]
[1747527958486,0.26690943,103240.0,103230.0,0.0362565]
[1747527959130,0.26690943,103240.0,103230.0,0.0459436]
[1747527959655,0.26690943,103240.0,103230.0,0.02466967]
[1747527959961,0.26690943,103240.0,103230.0,0.03435677]
[1747527960282,0.26690943,103240.0,103230.0,0.02466967]
[1747527960455,0.25722336,103240.0,103230.0,0.02466967]
[1747527961520,0.25722336,103240.0,103230.0,0.03435677]
[1747527962143,0.25722336,103240.0,103230.0,0.21841179]
[1747527962335,0.44838934,103240.0,103230.0,0.03435677]
[1747527963172,0.44838934,103240.0,103230.0,0.22809889]
[1747527963530,0.44838934,103240.0,103230.0,0.02466967]
[1747527964926,0.44838934,103240.0,103230.0,0.03435677]
[1747527965338,0.44838934,103240.0,103230.0,0.21841179]
[1747527965537,0.26690934,103240.0,103230.0,0.22809889]
[1747527965742,0.44838934,103240.0,103230.0,0.22809889]
[1747527965974,0.0323,103240.0,103230.0,0.24747281]
[1747527966172,0.42687446,103240.0,103230.0,0.28274598]
[1747527966423,0.0323,103240.0,103230.0,0.28274598]
[1747527966569,0.05167111,103240.0,103230.0,0.28274598]
[1747527966752,0.24539447,103240.0,103230.0,0.28274598]
[1747527966948,0.25508035,103240.0,103230.0,0.28274561]
[1747527967433,0.24539447,103240.0,103230.0,0.28274504]
[1747527967613,0.25508016,103240.0,103230.0,0.28274504]
[1747527968348,0.24539447,103240.0,103230.0,0.28274504]
[1747527968554,0.25508026,103240.0,103230.0,0.28274504]
[1747527968930,0.25508026,103240.0,103230.0,0.2730586]
[1747527969470,0.25508026,103240.0,103230.0,0.26337206]
[1747527969676,0.26476614,103240.0,103230.0,0.26337206]
[1747527970543,0.26476614,103240.0,103230.0,0.2730586]
[1747527971189,0.26476614,103240.0,103230.0,0.25368543]
[1747527971398,0.26476614,103240.0,103230.0,0.26337206]
[1747527972659,0.26476614,103240.0,103230.0,0.2730586]
[1747527973091,0.26476614,103240.0,103230.0,0.26337206]
[1747527973973,0.27445212,103240.0,103230.0,0.24747206]
[1747527974174,0.26476614,103240.0,103230.0,0.2571586]
[1747527974346,0.26476614,103240.0,103230.0,0.24747206]
[1747527974890,0.27445212,103240.0,103230.0,0.24747206]
[1747527975374,0.27445212,103240.0,103230.0,0.23778543]
[1747527976064,0.27445212,103240.0,103230.0,0.24747206]
[1747527977852,0.0323,103240.0,103230.0,0.40060875]
[1747527978085,0.0323,103240.0,103230.0,0.74060875]
[1747527980112,0.0323,103240.0,103230.0,0.74160875]
[1747527980355,0.0323,103240.0,103230.0,0.74060875]
[1747527980590,0.0323,103240.0,103230.0,0.72517452]
[1747527980825,0.0323,103240.0,103230.0,0.72817452]
[1747527981025,0.0323,103240.0,103230.0,0.73017452]
[1747527981547,0.0323,103240.0,103230.0,0.73779181]
[1747527981756,0.04198532,103240.0,103230.0,0.74179181]
[1747527981966,0.04198532,103240.0,103230.0,0.72549181]
[1747527982169,0.25507978,103240.0,103230.0,0.67151472]
[1747527982370,0.25507978,103240.0,103230.0,0.69088789]
[1747527982490,0.25507978,103240.0,103230.0,0.70057443]
[1747527982694,0.06135633,103240.0,103230.0,0.70057443]
[1747527983103,0.05167073,103240.0,103230.0,0.70057443]
[1747527983343,0.06135633,103240.0,103230.0,0.70057443]
[1747527983655,0.25507969,103240.0,103230.0,0.70057443]
[1747527983885,0.06135633,103240.0,103230.0,0.70057443]
[1747527984404,0.05167073,103240.0,103230.0,0.70057443]
[1747527984802,0.06135624,103240.0,103230.0,0.70057443]
[1747527985051,0.04198532,103240.0,103230.0,0.70057443]
[1747527985232,0.04198532,103240.0,103230.0,0.71617443]
[1747527985436,0.05167083,103240.0,103230.0,0.71617443]
[1747527985639,0.04198532,103240.0,103230.0,0.71617443]
[1747527986216,0.0323,103240.0,103230.0,0.72582651]
[1747527986425,0.0323,103240.0,103230.0,0.74102651]
[1747527988519,0.0323,103240.0,103230.0,1.15512651]
[1747527993527,0.0323,103240.0,103230.0,1.13992651]
[1747527993941,0.0323,103240.0,103230.0,1.12432651]
[1747527994569,0.0323,103240.0,103230.0,1.13942651]
[1747528000091,0.0323,103240.0,103230.0,1.12432651]
[1747528012215,0.00906133,103240.0,103230.0,1.12432651]
[1747528017511,0.00906133,103240.0,103230.0,1.13952651]
[1747528018400,0.00906133,103240.0,103230.0,1.12432651]
[1747528018871,0.02486133,103240.0,103230.0,1.12432651]
[1747528020436,0.00906133,103240.0,103230.0,1.12432651]
[1747528021679,0.02446133,103240.0,103230.0,1.12432651]
[1747528022300,0.04076133,103240.0,103230.0,1.12432651]
[1747528026013,0.02446133,103240.0,103230.0,1.12432651]
[1747528028363,0.02730797,103240.0,103230.0,1.12432651]
[1747528028569,0.01762256,103240.0,103230.0,1.12432651]
[1747528029061,0.02730797,103240.0,103230.0,1.12432651]
[1747528029487,0.03699348,103240.0,103230.0,1.12432651]
[1747528029695,0.04667927,103240.0,103230.0,1.12432651]
[1747528030104,0.04667917,103240.0,103230.0,1.12432651]
[1747528030484,0.04667917,103240.0,103230.0,0.71022651]
[1747528031736,0.04667917,103240.0,103230.0,0.66351639]
[1747528032356,0.02730797,103240.0,103230.0,0.66351639]
[1747528032983,0.03699348,103240.0,103230.0,0.66351639]
[1747528033747,0.02730797,103240.0,103230.0,0.65386431]
[1747528033945,0.01762256,103240.0,103230.0,0.65386431]
[1747528034159,0.0164,103240.0,103230.0,0.65386431]
[1747528037392,0.04178532,103240.0,103230.0,0.65386431]
[1747528038332,0.25488016,103240.0,103230.0,0.63449133]
[1747528038573,0.25488007,103240.0,103230.0,0.6248046]
[1747528038807,0.26456605,103240.0,103230.0,0.64417777]
[1747528039031,0.25488007,103240.0,103230.0,0.64417787]
[1747528039268,0.26456595,103240.0,103230.0,0.65386431]
[1747528039479,0.06115671,103240.0,103230.0,0.65386431]
[1747528040398,0.25488007,103240.0,103230.0,0.65386431]
[1747528044357,0.04178532,103240.0,103230.0,0.65386431]
[1747528044569,0.44444647,103250.0,103240.0,0.22278091]
[1747528045028,0.25336134,103250.0,103240.0,0.22278091]
[1747528045262,0.26304638,103250.0,103240.0,0.23246651]
[1747528045544,0.26304638,103250.0,103240.0,0.23825233]
[1747528045727,0.26304638,103250.0,103240.0,0.23825242]
[1747528045972,0.45413161,103250.0,103240.0,0.24225242]
[1747528047118,0.45413161,103250.0,103240.0,0.23256673]
[1747528047323,0.44444714,103250.0,103240.0,0.23256673]
[1747528047943,0.43476191,103250.0,103240.0,0.23256673]
[1747528048162,0.43476191,103250.0,103240.0,0.25193802]
[1747528048338,0.25336191,103250.0,103240.0,0.25193802]
[1747528048537,0.44444714,103250.0,103240.0,0.24225242]
[1747528048923,0.44444704,103250.0,103240.0,0.25193802]
[1747528049281,0.44444714,103250.0,103240.0,0.24225242]
[1747528049526,0.43476191,103250.0,103240.0,0.25193802]
[1747528049739,0.44444714,103250.0,103240.0,0.24225242]
[1747528050122,0.44444714,103250.0,103240.0,0.23911912]
[1747528051031,0.44444704,103250.0,103240.0,0.24880472]
[1747528051204,0.44444704,103250.0,103240.0,0.25808825]
[1747528051404,0.44444704,103250.0,103240.0,0.23871696]
[1747528051600,0.44444704,103250.0,103240.0,0.24840275]
[1747528051843,0.43476191,103250.0,103240.0,0.25808835]
[1747528052053,0.43476191,103250.0,103240.0,0.24840275]
[1747528054856,0.43476191,103250.0,103240.0,0.25808844]
[1747528055057,0.44444714,103250.0,103240.0,0.23871696]
[1747528055263,0.44444714,103250.0,103240.0,0.24840275]
[1747528055490,0.44444714,103250.0,103240.0,0.23871696]
[1747528056745,0.44444714,103250.0,103240.0,0.24840275]
[1747528057362,0.43476238,103250.0,103240.0,0.22903108]
[1747528057672,0.43476238,103250.0,103240.0,0.23871706]
[1747528058213,0.43476238,103250.0,103240.0,0.22903108]
[1747528058749,0.42507753,103250.0,103240.0,0.23216447]
[1747528058951,0.42507753,103250.0,103240.0,0.24185054]
[1747528059446,0.42507753,103250.0,103240.0,0.23216447]
[1747528059647,0.41539249,103250.0,103240.0,0.02875495]
[1747528059823,0.41539249,103250.0,103240.0,0.03844111]
[1747528060201,0.41539249,103250.0,103240.0,0.02875495]
[1747528060607,0.41539249,103250.0,103240.0,0.03844111]
[1747528061594,0.41539249,103250.0,103240.0,0.24185054]
[1747528061813,0.41539249,103250.0,103240.0,0.23216447]
[1747528062226,0.41539249,103250.0,103240.0,0.24185054]
[1747528062945,0.41539249,103250.0,103240.0,0.03844111]
[1747528063239,0.41539249,103250.0,103240.0,0.24185054]
[1747528064941,0.41539249,103250.0,103240.0,0.25153652]
[1747528065059,0.41539249,103250.0,103240.0,0.24185054]
[1747528065264,0.41539249,103250.0,103240.0,0.25153652]
[1747528070054,0.41539249,103250.0,103240.0,0.24185054]
[1747528070459,0.41539249,103250.0,103240.0,0.25153652]
[1747528073849,0.41539249,103250.0,103240.0,0.24840322]
[1747528074282,0.2339922,103250.0,103240.0,0.2580891]
[1747528074487,0.44440381,103250.0,103240.0,0.26777442]
[1747528074704,0.25335858,103250.0,103240.0,0.25808873]
[1747528074912,0.23132914,103250.0,103240.0,0.26777424]
[1747528075108,0.23132885,103250.0,103240.0,0.26777424]
[1747528075345,0.25345871,103260.0,103250.0,0.22275963]
[1747528075483,0.24377452,103260.0,103250.0,0.22275963]
[1747528075699,0.42513452,103260.0,103250.0,0.21307496]
[1747528076132,0.42513452,103260.0,103250.0,0.23204353]
[1747528076323,0.42513452,103260.0,103250.0,0.21267336]
[1747528076529,0.42513452,103260.0,103250.0,0.22335849]
[1747528076944,0.42513452,103260.0,103250.0,0.01028353]
[1747528077149,0.4154507,103260.0,103250.0,0.01028353]
[1747528077351,0.4154507,103260.0,103250.0,0.01996876]
[1747528077556,0.4154507,103260.0,103250.0,0.03157176]
[1747528078061,0.4154507,103260.0,103250.0,0.02188653]
[1747528079757,0.4057666,103260.0,103250.0,0.02188653]
[1747528090060,0.4057266,103260.0,103250.0,0.02188653]
[1747528090427,0.2244066,103260.0,103250.0,0.02188653]
[1747528090630,0.4057266,103260.0,103250.0,0.02188653]
[1747528092789,0.2244066,103260.0,103250.0,0.02188653]
[1747528093013,0.4056866,103260.0,103250.0,0.02188653]
[1747528094392,0.3906866,103260.0,103250.0,0.02188653]
[1747528094599,0.39445452,103260.0,103250.0,0.02188653]
[1747528094843,0.21317452,103260.0,103250.0,0.02188653]
[1747528095059,0.39445452,103260.0,103250.0,0.02188653]
[1747528095905,0.39445452,103260.0,103250.0,0.03157176]
[1747528096123,0.39445452,103260.0,103250.0,0.02188653]
[1747528096322,0.41045452,103260.0,103250.0,0.02188653]
[1747528102833,0.21317452,103260.0,103250.0,0.22527636]
[1747528103040,0.39445452,103260.0,103250.0,0.23496149]
[1747528103448,0.2130532,103260.0,103250.0,0.23496149]
[1747528103655,0.40397795,103260.0,103250.0,0.03157176]
[1747528103854,0.40397795,103260.0,103250.0,0.22527636]
[1747528104056,0.40397795,103260.0,103250.0,0.02188653]
[1747528104281,0.39429413,103260.0,103250.0,0.02188653]
[1747528106099,0.39429413,103260.0,103250.0,0.21559113]
[1747528106280,0.39429413,103260.0,103250.0,0.03157176]
[1747528111368,0.39429413,103260.0,103250.0,0.23496149]
[1747528111568,0.39429413,103260.0,103250.0,0.02188653]
[1747528112723,0.19368584,103260.0,103250.0,0.22527636]
[1747528112925,0.00968344,103260.0,103250.0,0.2756454]
[1747528113137,0.22273682,103260.0,103250.0,0.26596093]
[1747528113342,0.23242092,103260.0,103250.0,0.2756455]
[1747528114961,0.22273682,103260.0,103250.0,0.2756455]
[1747528115159,0.22273673,103260.0,103250.0,0.2756455]
[1747528115356,0.23242074,103260.0,103250.0,0.27638062]
[1747528115834,0.01936707,103260.0,103250.0,0.27638062]
[1747528116010,0.23242092,103260.0,103250.0,0.27638062]
[1747528116203,0.02905089,103260.0,103250.0,0.27638062]
[1747528116417,0.0387348,103260.0,103250.0,0.27638062]
[1747528117508,0.23242064,103260.0,103250.0,0.27638062]
[1747528117713,0.02905098,103260.0,103250.0,0.38823087]
[1747528118766,0.02905098,103260.0,103250.0,0.40300351]
[1747528119266,0.02905089,103260.0,103250.0,0.40300351]
[1747528119906,0.01936707,103260.0,103250.0,0.40300351]
[1747528120186,0.02905089,103260.0,103250.0,0.40300351]
[1747528123880,0.02905089,103260.0,103250.0,0.38760351]
[1747528124314,0.02905089,103260.0,103250.0,0.37200351]
[1747528125894,0.22840521,103270.0,103260.0,0.22273786]
[1747528126094,0.00968269,103270.0,103260.0,0.23202139]
[1747528126302,0.20052557,103270.0,103260.0,0.24170502]
[1747528126524,0.21020864,103270.0,103260.0,0.24170502]
[1747528126926,0.2208918,103270.0,103260.0,0.25328383]
[1747528127133,0.22093927,103270.0,103260.0,0.25328383]
[1747528127502,0.42428961,103270.0,103260.0,0.25328383]
[1747528127743,0.41460635,103270.0,103260.0,0.25328383]
[1747528127958,0.22293927,103270.0,103260.0,0.25328383]
[1747528128418,0.22093927,103270.0,103260.0,0.25328383]
[1747528128824,0.21993927,103270.0,103260.0,0.25328383]
[1747528129259,0.21993927,103270.0,103260.0,0.25428383]
[1747528129480,0.21025611,103270.0,103260.0,0.25428383]
[1747528130235,0.02909611,103270.0,103260.0,0.25428383]
[1747528130487,0.23244635,103270.0,103260.0,0.25428383]
[1747528130714,0.03877927,103270.0,103260.0,0.25428383]
[1747528130932,0.02909611,103270.0,103260.0,0.25428383]
[1747528131153,0.03877927,103270.0,103260.0,0.25428383]
[1747528132020,0.02909611,103270.0,103260.0,0.25428383]
[1747528132213,0.22276319,103270.0,103260.0,0.25428383]
[1747528132437,0.2421297,103270.0,103260.0,0.2446003]
[1747528132654,0.2421297,103270.0,103260.0,0.25428402]
[1747528132916,0.23244635,103270.0,103260.0,0.26396765]
[1747528133138,0.24212961,103270.0,103260.0,0.25428402]
[1747528133463,0.23244635,103270.0,103260.0,0.26396765]
[1747528134322,0.02909611,103270.0,103260.0,0.26396765]
[1747528137143,0.01941304,103270.0,103260.0,0.26396765]
[1747528137358,0.02909601,103270.0,103260.0,0.26396765]
[1747528138403,0.01941304,103270.0,103260.0,0.3758179]
[1747528139298,0.0290962,103270.0,103260.0,0.3758179]
[1747528140141,0.22276328,103270.0,103260.0,0.3758179]
[1747528140356,0.23846328,103270.0,103260.0,0.3758179]
[1747528141411,0.24814663,103270.0,103260.0,0.36613427]
[1747528142541,0.26434663,103270.0,103260.0,0.33708272]
[1747528142763,0.25466394,103270.0,103260.0,0.23491657]
[1747528142973,0.25466394,103270.0,103260.0,0.24460058]
[1747528143230,0.25466394,103270.0,103260.0,0.26396831]
[1747528144300,0.25466394,103270.0,103260.0,0.25428449]
[1747528144870,0.25466394,103270.0,103260.0,0.26396831]
[1747528145867,0.25466394,103270.0,103260.0,0.27630643]
[1747528146260,0.25466394,103270.0,103260.0,0.27630586]
[1747528150215,0.25466394,103270.0,103260.0,0.26662214]
[1747528152601,0.25466394,103270.0,103260.0,0.24725441]
[1747528152812,0.25466394,103270.0,103260.0,0.25693823]
[1747528153695,0.25466394,103270.0,103260.0,0.26662195]
[1747528153918,0.25466394,103270.0,103260.0,0.25504314]
[1747528159825,0.01941295,103270.0,103260.0,0.25504314]
[1747528160041,0.01941295,103270.0,103260.0,0.26472677]
[1747528160264,0.01941286,103270.0,103260.0,0.26472677]
[1747528160484,0.02909583,103270.0,103260.0,0.26472677]
[1747528163062,0.03877899,103270.0,103260.0,0.26472677]
[1747528164332,0.23244607,103270.0,103260.0,0.26472677]
[1747528165485,0.25752933,103270.0,103260.0,0.26472677]
[1747528165684,0.25752933,103270.0,103260.0,0.25504314]
[1747528165934,0.27272933,103270.0,103260.0,0.26472677]
[1747528167183,0.05417899,103270.0,103260.0,0.26472677]
[1747528167391,0.24784607,103270.0,103260.0,0.26472677]
[1747528169752,0.25752933,103270.0,103260.0,0.26472677]
[1747528170563,0.25752933,103270.0,103260.0,0.27461112]
[1747528170772,0.25752933,103270.0,103260.0,0.25504314]
[1747528171019,0.24784673,103270.0,103260.0,0.25504314]
[1747528173831,0.25753008,103270.0,103260.0,0.25504314]
[1747528174041,0.27283008,103270.0,103260.0,0.25504314]
[1747528175513,0.27283008,103270.0,103260.0,0.24535942]
[1747528176141,0.26314729,103270.0,103260.0,0.24535942]
[1747528185164,0.26314729,103270.0,103260.0,0.2356756]
[1747528185368,0.25346432,103270.0,103260.0,0.24535951]
[1747528187336,0.25346432,103270.0,103260.0,0.25504323]
[1747528187728,0.23816432,103270.0,103260.0,0.25504333]
[1747528198223,0.22848116,103270.0,103260.0,0.24535951]
[1747528198434,0.24368116,103270.0,103260.0,0.22599159]
[1747528198649,0.24368116,103270.0,103260.0,0.2356756]
[1747528198867,0.24368116,103270.0,103260.0,0.22599159]
[1747528199077,0.24368116,103270.0,103260.0,0.2356756]
[1747528199444,0.2339979,103270.0,103260.0,0.22599178]
[1747528199650,0.24368097,103270.0,103260.0,0.2550437]
[1747528199855,0.24368097,103270.0,103250.0,0.01454085]
[1747528199856,0.00968344,103260.0,103250.0,0.01454085]
[1747528200092,0.00968344,103260.0,103250.0,0.30555485]
[1747528200723,0.01936698,103260.0,103250.0,0.32492389]
[1747528200928,0.00968344,103260.0,103250.0,0.32492389]
[1747528201148,0.01936707,103260.0,103250.0,0.32692389]
[1747528201352,0.01936707,103260.0,103250.0,0.33668194]
[1747528201721,0.02905089,103260.0,103250.0,0.33768194]
[1747528202118,0.02905089,103260.0,103250.0,0.34927655]
[1747528202687,0.01936707,103260.0,103250.0,0.34927655]
[1747528202937,0.02905089,103260.0,103250.0,0.34927655]
[1747528203749,0.22273673,103260.0,103250.0,0.34927711]
[1747528203950,0.02905089,103260.0,103250.0,0.35896168]
[1747528205483,0.01936707,103260.0,103250.0,0.35896168]
[1747528205883,0.02905089,103260.0,103250.0,0.35896168]
[1747528206102,0.01936707,103260.0,103250.0,0.35896168]
[1747528206324,0.02905079,103260.0,103250.0,0.35896168]